Workbook

Sheet End User
A1: Region | B1: SiteGroup | C1: SARS Site | D1: Site Details | E1: Classification | F1: SLA Coverage Period | G1: SLA Metal | H1: Barcode Printer | I1: Braille Printer | J1: Desktop | K1: Dot Matrix Printer | L1: Inkjet Printer | M1: Label Printer | N1: Laser Printer | O1: LCD Monitor | P1: LED Monitor | Q1: Line Matrix Printer | R1: MFP RT3 Printer | S1: Personal MFDs | T1: Laptop | U1: Plasma Monitor | V1: Plotter | W1: Receipt Printer | X1: Scanner | Y1: Tablet
A2: Eastern Cape | B2: Eastern Cape Region | C2: Airport - Gqeberha International - Cargo Building | D2: Airport - Gqeberha International - Cargo Building | E2: Metro | F2: Standard | G2: Gold | H2: 1
A3: Eastern Cape | B3: Eastern Cape Region | C3: Airport - Gqeberha International - Terminal Building | D3: Airport - Gqeberha International - Terminal Building | E3: Metro | F3: Basic | G3: Silver | O3: 4 | X3: 4
A4: Eastern Cape | B4: Eastern Cape Region | C4: Customs & Revenue - East London - Waverly Building | D4: Customs & Revenue - East London - Waverly Building | E4: Metro | F4: Extended | G4: Gold | H4: 15 | J4: 25 | N4: 8 | O4: 249 | P4: 7 | Q4: 1 | R4: 15 | S4: 2 | T4: 192 | U4: 8 | X4: 10 | Y4: 19
A5: Eastern Cape | B5: Eastern Cape Region | C5: Customs & Revenue - Gqeberha - Sanlam Centre | D5: Customs & Revenue - Gqeberha - Sanlam Centre | E5: Metro | F5: Extended | G5: Gold | H5: 4 | J5: 44 | M5: 1 | N5: 2 | O5: 174 | P5: 56 | R5: 18 | T5: 177 | U5: 14 | X5: 47 | Y5: 16
A6: Eastern Cape | B6: Eastern Cape Region | C6: Customs & Revenue - Gquberha Forrest Hill K9 Unit | D6: Customs & Revenue - Gquberha Forrest Hill K9 Unit | E6: Town | F6: Standard | G6: Silver
A7: Eastern Cape | B7: Eastern Cape Region | C7: Revenue - Kriega | D7: Revenue - Kriega | E7: Town | F7: Basic | G7: Gold | J7: 3 | O7: 9 | R7: 2 | T7: 20 | X7: 1 | Y7: 2
A8: Eastern Cape | B8: Eastern Cape Region | C8: Revenue - Mthatha | D8: Revenue - Mthatha | E8: Town | F8: Standard | G8: Gold | H8: 4 | J8: 9 | L8: 1 | N8: 2 | O8: 37 | P8: 41 | R8: 5 | T8: 43 | X8: 19 | Y8: 2
A9: Eastern Cape | B9: Eastern Cape Region | C9: Revenue - St Marys Terrace | D9: Revenue - St Marys Terrace | E9: Metro | F9: Standard | G9: Gold | H9: 8 | J9: 9 | L9: 4 | N9: 2 | O9: 235 | P9: 6 | R9: 13 | T9: 182 | X9: 14 | Y9: 7
A10: Eastern Cape | B10: Eastern Cape Region | C10: State Warehouse - Gqeberha | D10: State Warehouse - Gqeberha | E10: Metro | F10: Standard | G10: Silver | H10: 1 | P10: 1 | R10: 1 | T10: 2
A11: Eastern Cape | B11: Eastern Cape Region | C11: State Warehouse - Gqeberha Harrower Road | D11: State Warehouse - Gqeberha Harrower Road | E11: Metro | F11: Standard | G11: Silver | J11: 8 | O11: 14 | U11: 1 | X11: 6 | Y11: 1
H12: =SUM(H2:H11) -> 33 | J12: =SUM(J2:J11) -> 98 | L12: =SUM(L2:L11) -> 5 | M12: 1 | N12: 14 | O12: 722 | P12: 111 | Q12: 1 | R12: 54 | S12: 2 | T12: 616 | U12: 23 | X12: =SUM(X2:X11) -> 101 | Y12: =SUM(Y2:Y11) -> 47
A14: Free State | B14: Free State Region | C14: Airport - Bram Fischer International | D14: Airport - Bram Fischer International | E14: Basic | F14: Metro | G14: Gold | J14: 1 | O14: 1 | P14: 1 | X14: 1
A15: Free State | B15: Free State Region | C15: Border - Caledonspoort | D15: Border - Caledonspoort | E15: Rural | F15: Standard | G15: Silver | J15: 6 | O15: 12 | P15: 2 | R15: 2 | T15: 2 | X15: 5 | Y15: 8
A16: Free State | B16: Free State Region | C16: Border - Ficksburg Bridge | D16: Border - Ficksburg Bridge | E16: Rural | F16: Standard | G16: Silver | J16: 8 | O16: 23 | P16: 1 | R16: 4 | T16: 6 | U16: 1 | X16: 6 | Y16: 11
A17: Free State | B17: Free State Region | C17: Border - Maseru Bridge | D17: Border - Maseru Bridge | E17: Rural | F17: Standard | G17: Silver | J17: 9 | L17: 1 | O17: 32 | P17: 4 | R17: 3 | T17: 6 | Y17: 20
A18: Free State | B18: Free State Region | C18: Border - Van Rooyenshek | D18: Border - Van Rooyenshek | E18: Rural | F18: Standard | G18: Silver | J18: 7 | O18: 9 | P18: 4 | R18: 2 | S18: 1 | T18: 2 | X18: 3 | Y18: 2
A19: Free State | B19: Free State Region | C19: Customs - Ladybrand Dog Unit | D19: Customs - Ladybrand Dog Unit | E19: Town | F19: Basic | G19: Silver | J19: 2 | O19: 11 | P19: 1 | R19: 1 | T19: 6
A20: Free State | B20: Free State Region | C20: Customs & Revenue - Bloemfontein Central Gov | D20: Customs & Revenue - Bloemfontein Central Gov | E20: Metro | F20: Standard | G20: Gold | H20: 19 | J20: 55 | L20: 2 | N20: 6 | O20: 163 | P20: 67 | R20: 7 | S20: 2 | T20: 130 | U20: 12 | X20: 15 | Y20: 2
A21: Free State | B21: Free State Region | C21: Revenue - Bethlehem | D21: Revenue - Bethlehem | E21: Town | F21: Standard | G21: Gold | H21: 2 | J21: 16 | O21: 23 | P21: 1 | R21: 5 | T21: 5 | U21: 3 | X21: 6 | Y21: 2
A22: Free State | B22: Free State Region | C22: Revenue - Bloemfontein - Zastron | D22: Revenue - Bloemfontein - Zastron | E22: Metro | F22: Standard | G22: Gold | H22: 3 | J22: 42 | L22: 5 | N22: 1 | O22: 133 | P22: 59 | R22: 14 | T22: 124 | U22: 7 | X22: 60 | Y22: 14
A23: Free State | B23: Free State Region | C23: Revenue - Kroonstad | D23: Revenue - Kroonstad | E23: Town | F23: Standard | G23: Gold | H23: 5 | J23: 20 | N23: 2 | O23: 41 | P23: 3 | R23: 5 | S23: 1 | T23: 23 | U23: 5 | X23: 12 | Y23: 2
A24: Free State | B24: Free State Region | C24: Revenue - Welkom | D24: Revenue - Welkom | E24: Town | F24: Standard | G24: Gold | H24: 12 | J24: 20 | L24: 3 | N24: 14 | O24: 70 | P24: 4 | R24: 8 | T24: 36 | U24: 4 | X24: 12 | Y24: 2
A25: Free State | B25: Free State Region | C25: State Warehouse - Ladybrand | D25: State Warehouse - Ladybrand | E25: Town | F25: Standard | G25: Bronze | H25: 1 | J25: 1 | P25: 1 | T25: 1
H26: =SUM(H14:H25) -> 42 | J26: =SUM(J14:J25) -> 187 | L26: =SUM(L14:L25) -> 11 | N26: =SUM(N14:N25) -> 23 | O26: =SUM(O14:O25) -> 518 | P26: =SUM(P14:P25) -> 148 | R26: =SUM(R14:R25) -> 51 | S26: =SUM(S14:S25) -> 4 | T26: =SUM(T14:T25) -> 341 | U26: =SUM(U14:U25) -> 32 | X26: =SUM(X14:X25) -> 120 | Y26: =SUM(Y14:Y25) -> 63
A28: Gauteng | B28: Gauteng Central Region | C28: Airport - Lanseria | D28: Airport - Lanseria | E28: Metro | F28: Standard | G28: Gold | J28: 6 | O28: 10 | P28: 2 | R28: 3 | T28: 14 | X28: 1 | Y28: 4
A29: Gauteng | B29: Gauteng Central Region | C29: Airport - OR Thambo International - Arrivals | D29: Airport - OR Thambo International - Arrivals | E29: Metro | F29: Premium | G29: Platinum | J29: 17 | O29: 29 | P29: 1 | R29: 5 | S29: 2 | T29: 7 | X29: 9 | Y29: 23
A30: Gauteng | B30: Gauteng Central Region | C30: Airport - OR Thambo International - Mail Centre | D30: Airport - OR Thambo International - Mail Centre | E30: Metro | F30: Basic | G30: Gold | O30: 1 | R30: 1 | T30: 7
A31: Gauteng | B31: Gauteng Central Region | C31: Airport - OR Thambo International - New Agents Building | D31: Airport - OR Thambo International - New Agents Building | E31: Metro | F31: Premium | G31: Platinum | J31: 5 | N31: 7 | O31: 64 | P31: 19 | R31: 3 | S31: 1 | T31: 34 | U31: 2 | X31: 4 | Y31: 3
A32: Gauteng | B32: Gauteng Central Region | C32: Airport - OR Thambo International - Terminal Building | D32: Airport - OR Thambo International - Terminal Building | E32: Metro | F32: Premium | G32: Platinum | J32: 27 | N32: 3 | O32: 52 | P32: 9 | R32: 6 | S32: 3 | T32: 29 | X32: 16 | Y32: 8
A33: Gauteng | B33: Gauteng Central Region | C33: Customs - Johannesburg City Deep Depot | D33: Customs - Johannesburg City Deep Depot | E33: Metro | F33: Standard | G33: Gold | J33: 1 | O33: 2
A34: Gauteng | B34: Gauteng Central Region | C34: Customs - Kempton Park Dog Unit | D34: Customs - Kempton Park Dog Unit | E34: Metro | F34: Basic | G34: Silver | J34: 7 | O34: 11 | R34: 2 | T34: 6 | U34: 1 | Y34: 26
A35: Gauteng | B35: Gauteng Central Region | C35: Revenue - Alberton - Alberton Campus | D35: Revenue - Alberton - Alberton Campus | E35: Metro | F35: Extended | G35: Platinum | H35: 16 | I35: 1 | J35: 96 | L35: 4 | N35: 4 | O35: 1318 | P35: 185 | R35: 33 | S35: 1 | T35: 1374 | U35: 53 | X35: 23 | Y35: 4
A36: Gauteng | B36: Gauteng Central Region | C36: Revenue - Alberton - City Mall | D36: Revenue - Alberton City Mall | E36: Metro | F36: Standard | G36: Gold | H36: 4 | J36: 4 | O36: 10 | P36: 12 | R36: 2 | T36: 56 | U36: 8 | X36: 78 | Y36: 8
A37: Gauteng | B37: Gauteng Central Region | C37: Revenue - Benoni - Lakeside Mall | D37: Revenue - Benoni - Lakeside Mall | E37: Town | F37: Standard | G37: Gold | H37: 1 | J37: 3 | O37: 3 | P37: 2 | R37: 2 | T37: 23 | Y37: 6
A38: Gauteng | B38: Gauteng Central Region | C38: Revenue - Boksburg | D38: Revenue - Boksburg | E38: Metro | F38: Standard | G38: Gold | H38: 5 | J38: 7 | O38: 28 | P38: 7 | R38: 4 | T38: 30 | U38: 1 | Y38: 4
A39: Gauteng | B39: Gauteng Central Region | C39: Revenue - Edenvale | D39: Revenue - Edenvale | E39: Metro | F39: Standard | G39: Gold | H39: 4 | J39: 15 | O39: 89 | P39: 3 | R39: 3 | T39: 56 | U39: 7 | X39: 1 | Y39: 5
A40: Gauteng | B40: Gauteng Central Region | C40: Revenue - Joburg - Rissik Street | D40: Revenue - Joburg - Rissik Street | E40: Metro | F40: Standard | G40: Gold | H40: 29 | J40: 33 | L40: 1 | N40: 9 | O40: 275 | P40: 16 | R40: 12 | S40: 1 | T40: 122 | U40: 9 | X40: 1 | Y40: 5
A41: Gauteng | B41: Gauteng Central Region | C41: Revenue - Randburg | D41: Revenue - Randburg | E41: Metro | F41: Standard | G41: Gold | H41: 1 | J41: 25 | L41: 2 | N41: 2 | O41: 170 | P41: 12 | R41: 20 | S41: 1 | T41: 138 | U41: 5 | Y41: 3
A42: Gauteng | B42: Gauteng Central Region | C42: Revenue - Soweto Bara | D42: Revenue - Soweto Bara | E42: Town | F42: Standard | G42: Gold | H42: 2 | J42: 10 | O42: 22 | P42: 7 | R42: 5 | T42: 29 | Y42: 3
A43: Gauteng | B43: Gauteng Central Region | C43: Revenue - Vereeniging | D43: Revenue - Vereeniging | E43: Town | F43: Standard | G43: Gold | H43: 5 | J43: 42 | O43: 87 | P43: 2 | R43: 3 | T43: 24 | U43: 2 | Y43: 5
A44: Gauteng | B44: Gauteng Central Region | C44: Revenue - Woodmead - Large Business Centre | D44: Revenue - Woodmead - Large Business Centre | E44: Metro | F44: Standard | G44: Platinum | J44: 10 | L44: 1 | O44: 144 | P44: 19 | R44: 7 | T44: 312 | U44: 8 | Y44: 1
A45: Gauteng | B45: Gauteng Central Region | C45: State Warehouse - Johannesburg | D45: State Warehouse - Johannesburg | E45: Metro | F45: Basic | G45: Silver | H45: 1 | J45: 5 | O45: 13 | P45: 1 | T45: 5 | U45: 1
A46: Gauteng | B46: Gauteng Central Region | C46: State Warehouse - ORTIA Customs | D46: State Warehouse - ORTIA Customs | E46: Metro | F46: Premium | G46: Platinum | H46: 1 | J46: 8 | N46: 1 | O46: 8 | P46: 3 | R46: 4 | T46: 3
A47: Gauteng | B47: Gauteng North | C47: Admin - 271 Veale Street | D47: Admin - 271 Veale Street | E47: Metro | F47: Extended | G47: Gold | J47: 12 | M47: 1 | N47: 3 | O47: 166 | P47: 22 | R47: 9 | S47: 2 | T47: 200 | U47: 17 | X47: 1 | Y47: 2
A48: Gauteng | B48: Gauteng North | C48: Admin - Pretoria - Office of Tax Ombuds | D48: Admin - Pretoria - Office of Tax Ombuds | E48: Metro | F48: Basic | G48: Gold | J48: 7 | O48: 26 | P48: 12 | R48: 2 | T48: 36 | U48: 2
A49: Gauteng | B49: Gauteng North | C49: Admin - SITA Centurion (IT DR Site) | D49: Admin - SITA Centurion (IT DR Site) | E49: Metro | F49: Extended | G49: Silver | U49: 1
A50: Gauteng | B50: Gauteng North | C50: Customs - Pretoria - Customs House | D50: Customs - Pretoria - Customs House | E50: Metro | F50: Standard | G50: Silver | H50: 1 | J50: 3 | N50: 1 | O50: 33 | R50: 3 | S50: 1 | T50: 26 | X50: 1
A51: Gauteng | B51: Gauteng North | C51: Revenue - Doringkloof Contact Centre | D51: Revenue - Doringkloof Contact Centre | E51: Metro | F51: Extended | G51: Gold | H51: 50 | J51: 101 | N51: 1 | O51: 803 | P51: 117 | R51: 26 | T51: 741 | U51: 16 | X51: 6 | Y51: 21
A52: Gauteng | B52: Gauteng North | C52: Revenue - Pretoria - Ashlea Gardens | D52: Revenue - Pretoria - Ashlea Gardens | E52: Metro | F52: Standard | G52: Gold | H52: 1 | J52: 32 | O52: 108 | P52: 9 | R52: 9 | S52: 1 | T52: 71 | U52: 3 | Y52: 4
A53: Gauteng | B53: Gauteng North | C53: Revenue - Pretoria - Main Receiver Building | D53: Revenue - Pretoria - Main Receiver Building | E53: Metro | F53: Standard | G53: Gold | H53: 12 | J53: 46 | N53: 8 | O53: 256 | P53: 23 | Q53: 1 | R53: 22 | T53: 199 | U53: 8 | X53: 7 | Y53: 25
A54: Gauteng | B54: Gauteng North | C54: State Warehouse - Iscor Warehouse | D54: State Warehouse - Iscor Warehouse | E54: Metro | F54: Basic | G54: Silver | J54: 1 | L54: 1 | O54: 3 | R54: 1 | S54: 1
A55: Gauteng | B55: Gauteng North | C55: State Warehouse - Silverton | D55: State Warehouse - Silverton | E55: Metro | F55: Basic | G55: Silver | H55: 2 | J55: 1 | O55: 1 | R55: 2 | T55: 1 | U55: 3 | X55: 1
A56: Gauteng | B56: Gauteng South Region | C56: Airport – Fireblade Aviation | D56: Airport – Fireblade Aviation | E56: Metro | F56: Standard | G56: Gold | J56: 2 | O56: 3 | X56: 1
A57: Gauteng | B57: Gauteng South Region | C57: Revenue - Krugersdorp | D57: Revenue - Krugersdorp | E57: Metro | F57: Standard | G57: Gold | H57: 4 | J57: 15 | O57: 53 | P57: 10 | R57: 3 | T57: 69 | U57: 3 | W57: 1 | X57: 1 | Y57: 6
A58: Gauteng | B58: Gauteng South Region | C58: Revenue - Nigel | D58: Revenue - Nigel | E58: Town | F58: Standard | G58: Gold | H58: 2 | J58: 20 | O58: 32 | P58: 1 | Q58: 1 | R58: 2 | T58: 5 | U58: 2 | W58: 2 | X58: 1 | Y58: 2
A59: Gauteng | B59: Gauteng South Region | C59: Revenue - Randfontein | D59: Revenue - Randfontein | E59: Town | F59: Standard | G59: Gold | J59: 2 | O59: 13 | R59: 2 | T59: 9 | Y59: 4
A60: Gauteng | B60: Gauteng South Region | C60: Revenue - Roodepoort | D60: Revenue - Roodepoort | E60: Town | F60: Standard | G60: Gold | H60: 3 | J60: 15 | N60: 2 | O60: 62 | P60: 6 | R60: 8 | S60: 1 | T60: 39 | U60: 1 | Y60: 4
A61: Gauteng | B61: Gauteng South Region | C61: Revenue - Springs | D61: Revenue - Springs | E61: Town | F61: Standard | G61: Gold | H61: 2 | J61: 9 | L61: 1 | N61: 1 | O61: 52 | R61: 3 | T61: 29 | U61: 3 | Y61: 3
A62: Gauteng | B62: Head Office Campus | C62: Admin - Brooklyn Bridge - Hilton House | D62: Admin - Brooklyn Bridge - Hilton House | E62: Metro | F62: Extended | G62: Gold | J62: 11 | N62: 1 | O62: 101 | P62: 26 | R62: 10 | S62: 1 | T62: 97 | X62: 1 | Y62: 4
A63: Gauteng | B63: Head Office Campus | C63: Admin - Brooklyn Bridge - Linton House | D63: Admin - Brooklyn Bridge - Linton House | E63: Metro | F63: Standard | G63: Gold | L63: 3 | M63: 1 | N63: 5 | O63: 133 | P63: 25 | T63: 13 | U63: 2 | X63: 1
A64: Gauteng | B64: Head Office Campus | C64: Admin - Khanyisa | D64: Admin - Khanyisa | E64: Metro | F64: Standard | G64: Gold | J64: 7 | O64: 160 | P64: 14 | R64: 11 | T64: 116 | X64: 2 | Y64: 4
A65: Gauteng | B65: Head Office Campus | C65: Admin - Khanyisa - VDU | D65: Admin - Khanyisa - VDU | E65: Metro | F65: Standard | G65: Gold | O65: 18 | P65: 6 | R65: 1 | T65: 16
A66: Gauteng | B66: Head Office Campus | C66: Admin - Lehae la SARS | D66: Admin - Lehae la SARS | E66: Metro | F66: Premium | G66: Gold | H66: 7 | J66: 155 | L66: 21 | M66: 7 | N66: 16 | O66: 1244 | P66: 456 | R66: 38 | S66: 3 | T66: 2200 | U66: 35 | V66: 1 | X66: 32 | Y66: 74
H67: =SUM(H28:H66) -> 153 | I67: =SUM(I28:I66) -> 1 | J67: =SUM(J28:J66) -> 760 | L67: =SUM(L28:L66) -> 34 | M67: 9 | N67: 64 | O67: 5603 | P67: 1027 | Q67: 2 | R67: 267 | S67: 19 | T67: 6136 | U67: 193 | V67: 1 | W67: 3 | X67: 188 | Y67: 261
A69: Kwazulu Natal | B69: Kwazulu Natal Region | C69: Airport - King Shaka Airport | D69: Airport - King Shaka Airport | E69: Metro | F69: Extended | G69: Gold | H69: 1 | J69: 18 | N69: 7 | O69: 22 | P69: 16 | R69: 3 | S69: 1 | T69: 10 | X69: 16
A70: Kwazulu Natal | B70: Kwazulu Natal Region | C70: Border - Golela | D70: Border - Golela | E70: Rural | F70: Standard | G70: Silver | J70: 16 | N70: 1 | O70: 27 | P70: 7 | R70: 4 | T70: 6 | X70: 6 | Y70: 8
A71: Kwazulu Natal | B71: Kwazulu Natal Region | C71: Border - Qachas Nek | D71: Border - Qachas Nek | E71: Rural | F71: Standard | G71: Silver | J71: 4 | O71: 9 | P71: 3 | R71: 2 | T71: 1 | X71: 4 | Y71: 7
A72: Kwazulu Natal | B72: Kwazulu Natal Region | C72: Customs - Durban - Cargo Scanner | D72: Customs - Durban - Cargo Scanner | E72: Metro | F72: Basic | G72: Silver | J72: 4 | O72: 7 | P72: 4 | R72: 1 | T72: 1 | U72: 1
A73: Kwazulu Natal | B73: Kwazulu Natal Region | C73: Customs - Durban - Customs House | D73: Customs - Durban - Customs House | E73: Metro | F73: Standard | G73: Silver | H73: 3 | J73: 16 | N73: 4 | O73: 61 | P73: 25 | R73: 2 | S73: 3 | T73: 50 | U73: 8 | X73: 3 | Y73: 15
A74: Kwazulu Natal | B74: Kwazulu Natal Region | C74: Customs - Durban - Durmail | D74: Customs - Durban - Durmail | E74: Metro | F74: Standard | G74: Silver | J74: 2 | O74: 7 | R74: 1 | T74: 2
A75: Kwazulu Natal | B75: Kwazulu Natal Region | C75: Customs - Kosi Bay | D75: Customs - Kosi Bay | E75: Rural | F75: Standard | G75: Silver | J75: 5 | O75: 5 | R75: 2 | T75: 2
A76: Kwazulu Natal | B76: Kwazulu Natal Region | C76: Customs - Richards Bay | D76: Customs - Richards Bay | E76: Town | F76: Standard | G76: Silver | H76: 1 | J76: 1 | O76: 10 | P76: 19 | R76: 2 | S76: 1 | T76: 19 | U76: 1 | X76: 1 | Y76: 5
A77: Kwazulu Natal | B77: Kwazulu Natal Region | C77: Customs & Revenue - Durban - Albany House | D77: Customs & Revenue - Durban - Albany House | E77: Metro | F77: Standard | G77: Gold | H77: 4 | J77: 23 | L77: 11 | N77: 31 | O77: 434 | P77: 22 | Q77: 1 | R77: 21 | S77: 2 | T77: 515 | U77: 3 | X77: 17
A78: Kwazulu Natal | B78: Kwazulu Natal Region | C78: Harbour - MSC Cruise Liner Terminal | D78: Harbour - MSC Cruise Liner Terminal | E78: Metro | F78: Extended | G78: Silver | R78: 1
A79: Kwazulu Natal | B79: Kwazulu Natal Region | C79: Revenue - Newcastle | D79: Revenue - Newcastle | E79: Town | F79: Basic | G79: Gold | J79: 8 | O79: 37 | P79: 1 | R79: 4 | T79: 29 | U79: 1 | X79: 12 | Y79: 4
A80: Kwazulu Natal | B80: Kwazulu Natal Region | C80: Revenue - Pietermaritzburg | D80: Revenue - Pietermaritzburg | E80: Town | F80: Standard | G80: Gold | H80: 4 | J80: 12 | L80: 2 | O80: 95 | P80: 3 | R80: 9 | S80: 1 | T80: 92 | U80: 9 | X80: 48 | Y80: 6
A81: Kwazulu Natal | B81: Kwazulu Natal Region | C81: Revenue - Pinetown | D81: Revenue - Pinetown | E81: Town | F81: Basic | G81: Gold | J81: 8 | M81: 1 | N81: 1 | O81: 12 | P81: 1 | R81: 4 | T81: 32 | U81: 4 | X81: 2 | Y81: 5
A82: Kwazulu Natal | B82: Kwazulu Natal Region | C82: Revenue - Port Shepstone | D82: Revenue - Port Shepstone | E82: Town | F82: Basic | G82: Gold | H82: 1 | J82: 13 | M82: 1 | O82: 28 | P82: 1 | R82: 4 | T82: 15 | U82: 4 | X82: 24 | Y82: 4
A83: Kwazulu Natal | B83: Kwazulu Natal Region | C83: Revenue - Richards Bay - Bayside Mall | D83: Revenue - Richards Bay - Bayside Mall | E83: Town | F83: Basic | G83: Gold | H83: 1 | J83: 24 | N83: 1 | O83: 40 | P83: 4 | R83: 4 | T83: 5 | U83: 3 | X83: 33 | Y83: 3
A84: Kwazulu Natal | B84: Kwazulu Natal Region | C84: Revenue - Trescon House | D84: Revenue - Trescon House | E84: Metro | F84: Basic | G84: Gold | H84: 43 | J84: 193 | L84: 5 | N84: 12 | O84: 674 | P84: 79 | R84: 28 | T84: 487 | U84: 23 | X84: 28 | Y84: 8
A85: Kwazulu Natal | B85: Kwazulu Natal Region | C85: Revenue - Umhlanga | D85: Revenue - Umhlanga | E85: Metro | F85: Standard | G85: Gold | H85: 1 | J85: 16 | O85: 44 | P85: 7 | R85: 13 | T85: 55 | U85: 11 | X85: 41 | Y85: 23
A86: Kwazulu Natal | B86: Kwazulu Natal Region | C86: State Warehouse - Durban New Pier | D86: State Warehouse - Durban New Pier | E86: Metro | F86: Basic | G86: Silver | R86: 1 | U86: 1
A87: Limpopo | B87: Limpopo Region | C87: Airport - Polokwane Gateway | D87: Airport - Polokwane Gateway | E87: Town | F87: Standard | G87: Silver | J87: 6 | O87: 10 | P87: 3 | R87: 2 | T87: 3 | Y87: 1
A88: Limpopo | B88: Limpopo Region | C88: Border - Beit Bridge | D88: Border - Beit Bridge | E88: Rural | F88: Premium | G88: Gold | H88: 4 | J88: 42 | N88: 1 | O88: 107 | P88: 25 | R88: 12 | S88: 2 | T88: 49 | U88: 2 | X88: 22 | Y88: 31
A89: Limpopo | B89: Limpopo Region | C89: Border - Groblers Bridge | D89: Border - Groblers Bridge | E89: Rural | F89: Standard | G89: Silver | H89: 2 | J89: 8 | O89: 40 | P89: 3 | R89: 4 | T89: 13 | U89: 1 | X89: 4 | Y89: 19
A90: Limpopo | B90: Limpopo Region | C90: Revenue - Giyani | D90: Revenue - Giyani | E90: Rural | F90: Standard | G90: Gold | H90: 2 | J90: 16 | L90: 1 | O90: 22 | P90: 1 | R90: 4 | T90: 12 | U90: 2 | Y90: 5
A91: Limpopo | B91: Limpopo Region | C91: Revenue - Lebowakgomo | D91: Revenue - Lebowakgomo | E91: Rural | F91: Standard | G91: Gold | H91: 2 | J91: 26 | L91: 3 | O91: 51 | P91: 3 | R91: 5 | T91: 9
A92: Limpopo | B92: Limpopo Region | C92: Revenue - Polokwane | D92: Revenue - Polokwane | E92: Town | F92: Standard | G92: Gold | H92: 4 | J92: 42 | L92: 6 | N92: 1 | O92: 79 | P92: 43 | R92: 16 | S92: 1 | T92: 140 | U92: 16 | W92: 1 | X92: 1 | Y92: 17
A93: Limpopo | B93: Limpopo Region | C93: Revenue - Thohoyandou | D93: Revenue - Thohoyandou | E93: Rural | F93: Standard | G93: Gold | H93: 6 | J93: 14 | L93: 1 | O93: 39 | P93: 3 | R93: 7 | T93: 21 | U93: 2 | Y93: 2
A94: Limpopo | B94: Limpopo Region | C94: State Warehouse - Musina | D94: State Warehouse - Musina | E94: Town | F94: Standard | G94: Silver
H95: =SUM(H69:H94) -> 79 | J95: =SUM(J69:J94) -> 517 | L95: =SUM(L69:L94) -> 29 | M95: 2 | N95: 59 | O95: 1860 | P95: 273 | Q95: 1 | R95: 156 | S95: 11 | T95: 1568 | U95: 92 | W95: =SUM(W69:W94) -> 1 | X95: =SUM(X69:X94) -> 262 | Y95: =SUM(Y69:Y94) -> 163
A97: Mpumalanga | B97: Mpumalanga Region | C97: Airport - Kruger International | D97: Airport - Kruger International | E97: Town | F97: Standard | G97: Silver | J97: 4 | O97: 9 | P97: 1 | R97: 4 | S97: 1 | T97: 4 | X97: 1
A98: Mpumalanga | B98: Mpumalanga Region | C98: Border - Jeppes Reef | D98: Border - Jeppes Reef | E98: Rural | F98: Standard | G98: Silver | J98: 9 | N98: 3 | O98: 11 | P98: 1 | R98: 6 | T98: 2 | X98: 7 | Y98: 6
A99: Mpumalanga | B99: Mpumalanga Region | C99: Border - Lebombo | D99: Border - Lebombo | E99: Rural | F99: Premium | G99: Gold | J99: 23 | N99: 3 | O99: 52 | R99: 14 | S99: 1 | T99: 23 | X99: 6 | Y99: 22
A100: Mpumalanga | B100: Mpumalanga Region | C100: Border - Lebombo Commercials | D100: Border - Lebombo Commercials | E100: Rural | F100: Standard | G100: Silver | J100: 5 | O100: 27 | S100: 1 | T100: 5 | X100: 19
A101: Mpumalanga | B101: Mpumalanga Region | C101: Border - Mahamba | D101: Border - Mahamba | E101: Rural | F101: Standard | G101: Silver | J101: 11 | L101: 1 | N101: 1 | O101: 16 | P101: 2 | R101: 5 | T101: 2 | X101: 4 | Y101: 2
A102: Mpumalanga | B102: Mpumalanga Region | C102: Border - Mananga | D102: Border - Mananga | E102: Rural | F102: Standard | G102: Silver | J102: 10 | N102: 1 | O102: 17 | R102: 6 | T102: 2 | X102: 4 | Y102: 8
A103: Mpumalanga | B103: Mpumalanga Region | C103: Border - Nerston | D103: Border - Nerston | E103: Rural | F103: Standard | G103: Silver | J103: 3 | O103: 11 | P103: 2 | R103: 4 | S103: 1 | T103: 5 | X103: 3 | Y103: 8
A104: Mpumalanga | B104: Mpumalanga Region | C104: Border - Oshoek | D104: Border - Oshoek | E104: Rural | F104: Premium | G104: Silver | H104: 1 | J104: 8 | N104: 2 | O104: 23 | P104: 2 | R104: 9 | S104: 1 | T104: 10 | X104: 1 | Y104: 1
A105: Mpumalanga | B105: Mpumalanga Region | C105: Customs - Lebombo Dog Unit | D105: Customs - Lebombo Dog Unit | E105: Rural | F105: Premium | G105: Gold | J105: 1 | O105: 7 | T105: 1
A106: Mpumalanga | B106: Mpumalanga Region | C106: Revenue - eMalahleni | D106: Revenue - eMalahleni | E106: Town | F106: Standard | G106: Gold | H106: 4 | J106: 16 | O106: 74 | P106: 17 | R106: 7 | T106: 57 | U106: 10 | X106: 11 | Y106: 5
A107: Mpumalanga | B107: Mpumalanga Region | C107: Revenue - Mbombela | D107: Revenue - Mbombela | E107: Town | F107: Standard | G107: Gold | H107: 7 | J107: 16 | L107: 1 | O107: 73 | P107: 15 | R107: 10 | T107: 94 | W107: 2 | X107: 8 | Y107: 13
A108: Mpumalanga | B108: Mpumalanga Region | C108: Revenue - Standerton | D108: Revenue - Standerton | E108: Town | F108: Standard | G108: Gold | H108: 5 | J108: 11 | O108: 32 | P108: 1 | R108: 7 | T108: 31 | U108: 3 | X108: 4 | Y108: 2
H109: =SUM(H97:H108) -> 17 | J109: =SUM(J97:J108) -> 117 | L109: =SUM(L97:L108) -> 2 | N109: =SUM(N97:N108) -> 10 | O109: =SUM(O97:O108) -> 352 | P109: =SUM(P97:P108) -> 41 | R109: =SUM(R97:R108) -> 72 | S109: =SUM(S97:S108) -> 5 | T109: =SUM(T97:T108) -> 236 | U109: =SUM(U97:U108) -> 13 | W109: =SUM(W97:W108) -> 2 | X109: =SUM(X97:X108) -> 68 | Y109: =SUM(Y97:Y108) -> 67
A111: North West | B111: North West Region | C111: Airport - Pilansberg | D111: Airport - Pilansberg | E111: Rural | F111: Standard | G111: Silver | O111: 2 | P111: 4 | R111: 1 | S111: 1 | T111: 3 | Y111: 3
A112: North West | B112: North West Region | C112: Border - Kopfontein Gate | D112: Border - Kopfontein Gate | E112: Rural | F112: Standard | G112: Silver | J112: 10 | O112: 22 | P112: 8 | R112: 7 | S112: 1 | T112: 6 | X112: 6 | Y112: 16
A113: North West | B113: North West Region | C113: Border - Ramatlabama | D113: Border - Ramatlabama | E113: Rural | F113: Standard | G113: Silver | J113: 8 | O113: 14 | P113: 3 | R113: 4 | S113: 1 | T113: 7 | X113: 2 | Y113: 10
A114: North West | B114: North West Region | C114: Border - Skilpadshek | D114: Border - Skilpadshek | E114: Rural | F114: Standard | G114: Silver | J114: 11 | O114: 26 | P114: 12 | R114: 7 | T114: 15 | X114: 4 | Y114: 9
A115: North West | B115: North West Region | C115: Revenue - Klerksdorp | D115: Revenue - Klerksdorp | E115: Town | F115: Premium | G115: Platinum | H115: 16 | I115: 2 | J115: 26 | O115: 71 | P115: 7 | R115: 7 | T115: 35 | U115: 2 | X115: 1 | Y115: 2
A116: North West | B116: North West Region | C116: Revenue - Mmabatho | D116: Revenue - Mmabatho | E116: Rural | F116: Standard | G116: Gold | H116: 7 | J116: 20 | L116: 1 | O116: 79 | P116: 3 | R116: 6 | T116: 55 | U116: 3 | W116: 1 | X116: 6 | Y116: 2
A117: North West | B117: North West Region | C117: Revenue - Rustenburg | D117: Revenue - Rustenburg | E117: Town | F117: Standard | G117: Gold | H117: 4 | J117: 30 | L117: 4 | O117: 80 | P117: 13 | R117: 10 | T117: 62 | U117: 6 | X117: 3 | Y117: 18
H118: =SUM(H111:H117) -> 27 | I118: =SUM(I111:I117) -> 2 | J118: =SUM(J111:J117) -> 105 | L118: =SUM(L111:L117) -> 5 | O118: =SUM(O111:O117) -> 294 | P118: =SUM(P111:P117) -> 50 | R118: =SUM(R111:R117) -> 42 | S118: =SUM(S111:S117) -> 3 | T118: =SUM(T111:T117) -> 183 | U118: =SUM(U111:U117) -> 11 | W118: =SUM(W111:W117) -> 1 | X118: =SUM(X111:X117) -> 22 | Y118: =SUM(Y111:Y117) -> 60
A120: Northern Cape | B120: Northern Cape Region | C120: Airport - Upington | D120: Airport - Upington | E120: Town | F120: Standard | G120: Gold | J120: 4 | O120: 4 | P120: 1 | R120: 2
A121: Northern Cape | B121: Northern Cape Region | C121: Border - Alexander Bay | D121: Border - Alexander Bay | E121: Rural | F121: Extended | G121: Gold | J121: 1 | N121: 1 | O121: 3 | R121: 2
A122: Northern Cape | B122: Northern Cape Region | C122: Border - Nakop | D122: Border - Nakop | E122: Rural | F122: Premium | G122: Gold | J122: 7 | O122: 19 | P122: 4 | R122: 4 | T122: 6 | X122: 10 | Y122: 9
A123: Northern Cape | B123: Northern Cape Region | C123: Border - Vioolsdrift | D123: Border - Vioolsdrift | E123: Rural | F123: Extended | G123: Gold | J123: 8 | O123: 20 | P123: 2 | R123: 4 | T123: 3 | X123: 9 | Y123: 15
A124: Northern Cape | B124: Northern Cape Region | C124: Customs & Revenue - Upington | D124: Customs & Revenue - Upington | E124: Town | F124: Standard | G124: Gold | H124: 3 | J124: 14 | O124: 46 | P124: 16 | R124: 3 | T124: 30 | U124: 2 | X124: 5 | Y124: 18
A125: Northern Cape | B125: Northern Cape Region | C125: Revenue - Kimberley - Bean and Crossman | D125: Revenue - Kimberley - Bean and Crossman | E125: Town | F125: Standard | G125: Gold | H125: 5 | J125: 31 | L125: 2 | O125: 92 | P125: 3 | R125: 11 | S125: 1 | T125: 42 | U125: 7 | X125: 34 | Y125: 7
A126: Northern Cape | B126: Northern Cape Region | C126: State Warehouse - Upington - Station | D126: State Warehouse - Upington - Station | E126: Town | F126: Standard | G126: Silver | H126: 1 | J126: 1 | O126: 9 | P126: 3 | R126: 1 | T126: 4 | X126: 1
H127: =SUM(H120:H126) -> 9 | J127: =SUM(J120:J126) -> 66 | L127: =SUM(L120:L126) -> 2 | N127: =SUM(N120:N126) -> 1 | O127: =SUM(O120:O126) -> 193 | P127: =SUM(P120:P126) -> 29 | R127: =SUM(R120:R126) -> 27 | S127: =SUM(S120:S126) -> 1 | T127: =SUM(T120:T126) -> 85 | U127: =SUM(U120:U126) -> 9 | X127: =SUM(X120:X126) -> 59 | Y127: =SUM(Y120:Y126) -> 49
A129: Western Cape | B129: Western Cape Region | C129: Admin - Parliament Building (120 Plein Street) | D129: Admin - Parliament Building (120 Plein Street) | E129: Metro | F129: Premium | G129: Platinum | O129: 2 | R129: 2 | U129: 2 | X129: 1
A130: Western Cape | B130: Western Cape Region | C130: Airport - Cape Town International - Airfreight | D130: Airport - Cape Town International - Airfreight | E130: Metro | F130: Premium | G130: Platinum | H130: 2 | J130: 6 | N130: 1 | O130: 20 | P130: 18 | R130: 1 | T130: 17 | X130: 1 | Y130: 15
A131: Western Cape | B131: Western Cape Region | C131: Airport - Cape Town International - Arrivals | D131: Airport - Cape Town International - Arrivals | E131: Metro | F131: Premium | G131: Platinum | J131: 18 | N131: 1 | O131: 25 | R131: 2 | S131: 1 | T131: 7 | X131: 22
A132: Western Cape | B132: Western Cape Region | C132: Airport - Cape Town International - Customs | D132: Airport - Cape Town International - Customs | E132: Metro | F132: Premium | G132: Platinum | R132: 3 | T132: 1
A133: Western Cape | B133: Western Cape Region | C133: Customs - Cape Town - Cargo Scanner | D133: Customs - Cape Town - Cargo Scanner | E133: Metro | F133: Extended | G133: Gold | J133: 4 | O133: 2 | P133: 4 | R133: 2 | T133: 6
A134: Western Cape | B134: Western Cape Region | C134: Customs - Mossel Bay | D134: Customs - Mossel Bay | E134: Town | F134: Standard | G134: Silver | H134: 2 | J134: 1 | O134: 2 | P134: 2 | R134: 1 | T134: 2
A135: Western Cape | B135: Western Cape Region | C135: Customs - Oudtshoorn | D135: Customs - Oudtshoorn | E135: Town | F135: Standard | G135: Silver | H135: 1 | J135: 2 | O135: 4 | P135: 3 | R135: 1 | T135: 5
A136: Western Cape | B136: Western Cape Region | C136: Customs - Robertson | D136: Customs - Robertson | E136: Town | F136: Standard | G136: Silver | J136: 1 | O136: 6 | P136: 2 | R136: 1 | T136: 5 | X136: 1
A137: Western Cape | B137: Western Cape Region | C137: Customs - Stellenbosch | D137: Customs - Stellenbosch | E137: Town | F137: Standard | G137: Gold | H137: 3 | K137: 2 | O137: 12 | P137: 3 | R137: 1 | T137: 13 | X137: 1
A138: Western Cape | B138: Western Cape Region | C138: Harbour - Cape Town - Cowrie Place | D138: Harbour - Cape Town - Cowrie Place | E138: Metro | F138: Extended | G138: Gold | J138: 5 | O138: 16 | R138: 3 | T138: 16
A139: Western Cape | B139: Western Cape Region | C139: Harbour - Saldanha Bay | D139: Harbour - Saldanha Bay | E139: Town | F139: Extended | G139: Silver | O139: 4 | R139: 1 | T139: 1
A140: Western Cape | B140: Western Cape Region | C140: Revenue - Beaufort West | D140: Revenue - Beaufort West | E140: Town | F140: Standard | G140: Gold | H140: 3 | J140: 12 | O140: 19 | P140: 1 | R140: 2 | T140: 1 | U140: 1 | W140: 1 | X140: 3 | Y140: 2
A141: Western Cape | B141: Western Cape Region | C141: Revenue - Bellville | D141: Revenue - Bellville | E141: Metro | F141: Basic | G141: Gold | H141: 52 | J141: 102 | N141: 3 | O141: 656 | P141: 146 | R141: 24 | T141: 521 | U141: 24 | X141: 17 | Y141: 17
A142: Western Cape | B142: Western Cape Region | C142: Revenue - Cape Mail | D142: Revenue - Cape Mail | E142: Metro | F142: Standard | G142: Gold | O142: 11 | R142: 1 | T142: 5
A143: Western Cape | B143: Western Cape Region | C143: Revenue - Cape Town - Lower Long Street | D143: Revenue - Cape Town - Lower Long Street | E143: Metro | F143: Standard | G143: Gold | H143: 6 | J143: 37 | O143: 103 | P143: 8 | R143: 10 | T143: 31 | U143: 1 | X143: 9 | Y143: 4
A144: Western Cape | B144: Western Cape Region | C144: Revenue - Cape Town - Plein Street | D144: Revenue - Cape Town - Plein Street | E144: Metro | F144: Premium | G144: Platinum | H144: 1 | J144: 1 | N144: 1 | O144: 11 | P144: 2 | R144: 2 | T144: 9 | X144: 1
A145: Western Cape | B145: Western Cape Region | C145: Revenue - Cape Town - Project 166 | D145: Revenue - Cape Town - Project 166 | E145: Metro | F145: Premium | G145: Platinum | H145: 12 | J145: 48 | L145: 3 | M145: 1 | N145: 9 | O145: 521 | P145: 60 | R145: 28 | S145: 5 | T145: 466 | U145: 3 | V145: 1 | X145: 5 | Y145: 37
A146: Western Cape | B146: Western Cape Region | C146: Revenue - George Eden Park | D146: Revenue - George Eden Park | E146: Town | F146: Basic | G146: Gold | H146: 5 | J146: 23 | N146: 1 | O146: 59 | P146: 19 | R146: 9 | T146: 50 | U146: 2 | X146: 48 | Y146: 6
A147: Western Cape | B147: Western Cape Region | C147: Revenue - Mitchells Plain | D147: Revenue - Mitchells Plain | E147: Metro | F147: Standard | G147: Gold | H147: 2 | J147: 24 | O147: 45 | P147: 1 | R147: 5 | T147: 11 | U147: 2 | Y147: 3
A148: Western Cape | B148: Western Cape Region | C148: Revenue - Paarl | D148: Revenue - Paarl | E148: Town | F148: Standard | G148: Gold | H148: 4 | J148: 19 | L148: 1 | O148: 52 | P148: 2 | R148: 4 | T148: 26 | U148: 2 | X148: 3 | Y148: 2
A149: Western Cape | B149: Western Cape Region | C149: Revenue - Worcester | D149: Revenue - Worcester | E149: Town | F149: Standard | G149: Gold | H149: 3 | J149: 24 | N149: 2 | O149: 56 | P149: 8 | R149: 6 | T149: 32 | U149: 4 | X149: 1 | Y149: 4
A150: Western Cape | B150: Western Cape Region | C150: State Warehouse - Cape Town | D150: State Warehouse - Cape Town | E150: Metro | F150: Standard | G150: Silver | H150: 2 | J150: 2 | O150: 4 | P150: 5 | R150: 1 | T150: 3
H151: =SUM(H129:H150) -> 98 | J151: =SUM(J129:J150) -> 329 | K151: 2 | L151: 4 | M151: 1 | N151: 18 | O151: 1630 | P151: 284 | R151: =SUM(R129:R150) -> 110 | S151: 6 | T151: 1228 | U151: 41 | V151: 1 | W151: 1 | X151: 113 | Y151: 90
A152: GRAND TOTALS | H152: =+H151+H127+H118+H109+H95+H67+H26+H12 -> 458 | I152: =+I151+I127+I118+I109+I95+I67+I26+I12 -> 3 | J152: 2179 | K152: 2 | L152: 92 | M152: 13 | N152: 189 | O152: 11172 | P152: 1963 | Q152: 4 | R152: 779 | S152: 51 | T152: 10393 | U152: 414 | V152: 2 | W152: 8 | X152: 933 | Y152: 800
